[Event "Gideon Japhet ACP Open 2018"]
[Site "Jerusalem"]
[Date "2018.07.03"]
[Round "4"]
[White "Cohen Revivo, Shoham"]
[Black "Kobo, Ori"]
[Result "0-1"]
[ECO "B06"]
[WhiteElo "2248"]
[BlackElo "2508"]
[Annotator "ChessBase"]
[PlyCount "72"]
[EventDate "2018.07.01"]
[EventType "swiss"]
[EventCountry "ISR"]
[SourceTitle "playchess.com"]
[Source "ChessBase"]
[SourceQuality "1"]
[TimeControl "40/5400+30:1800+30"]

1. e4 {[%emt 0:00:00]} g6 {[%emt 0:04:21]} 2. d4 {[%emt 0:00:00]} Bg7 {[%emt 0:00:06]} 3. Nc3 {[%emt 0:00:00]} d6 {[%emt 0:00:15]} 4. Bg5 {[%emt 0:00:06]} Nf6 {[%emt 0:00:08]} 5. Qd2 {[%emt 0:00:22]} c6 {[%emt 0:00:20]} 6. O-O-O {[%emt 0:02:33]} h6 {[%emt 0:03:47]} 7. Bf4 {[%emt 0:00:01]} g5 {[%emt 0:02:45]} 8. Bg3 {[%emt 0:00:10]} Nh5 {[%emt 0:00:21]} 9. Nge2 {[%emt 0:03:50]} b5 {[%emt 0:05:58]} 10. h4 {[%emt 0:03:45]} Nd7 {[%emt 0:10:24]} 11. Kb1 {[%emt 0:04:09]} g4 {[%emt 0:05:02]} 12. e5 {[%emt 0:14:02]} dxe5 {[%emt 0:03:53]} 13. dxe5 {[%emt 0:04:22]} Nxg3 {[%emt 0:00:11]} 14. Nxg3 {[%emt 0:00:49]} Bxe5 {[%emt 0:00:14]} 15. Be2 {[%emt 0:02:59]} h5 {[%emt 0:02:13]} 16. Nxh5 {[%emt 0:07:46]} Rxh5 {[%emt 0:01:17]} 17. Bxg4 {[%emt 0:00:11]} Rh8 {[%emt 0:07:20]} 18. Rhe1 {[%emt 0:00:10]} Qc7 {[%emt 0:08:44]} 19. Qg5 {[%emt 0:20:22]} e6 {[%emt 0:03:47]} 20. Bxe6 {[%emt 0:02:40]} fxe6 {[%emt 0:01:29]} 21. f4 {[%emt 0:00:06]} Nf6 {[%emt 0:15:31]} 22. fxe5 {[%emt 0:06:53]} Nd5 {[%emt 0:00:07]} 23. Rf1 {[%emt 0:04:33]} Qh7 {[%emt 0:00:06]} 24. Rd4 {[%emt 0:08:42]} Rg8 {[%emt 0:04:46]} 25. Qd2 {[%emt 0:02:28]} Bb7 {[%emt 0:02:04]} 26. Ne4 {[%emt 0:01:19]} O-O-O {[%emt 0:00:14]} 27. Nd6+ {[%emt 0:06:27]} Rxd6 {[%emt 0:03:52]} 28. exd6 {[%emt 0:00:01]} c5 {[%emt 0:02:03]} 29. Rd3 {[%emt 0:00:52]} Qxh4 {[%emt 0:02:00]} 30. Rdf3 {[%emt 0:01:02]} Qd8 {[%emt 0:02:52]} 31. Qh6 {[%emt 0:03:16]} Qxd6 {[%emt 0:00:07]} 32. Rf7 {[%emt 0:00:44]} Rd8 {[%emt 0:01:37]} 33. g4 {[%emt 0:00:55]} Nb6 {[%emt 0:04:31]} 34. a3 {[%emt 0:00:27]} Nc4 {[%emt 0:00:14]} 35. Rc1 {[%emt 0:00:55]} b4 {[%emt 0:01:44]} 36. axb4 {[%emt 0:00:12]} Nd2+ {[%emt 0:00:06]} 0-1

[Event "Gideon Japhet ACP Open 2018"]
[Site "Jerusalem"]
[Date "2018.07.03"]
[Round "4"]
[White "Milikow, Yoav"]
[Black "Agrest, Inna"]
[Result "1/2-1/2"]
[ECO "E90"]
[WhiteElo "2161"]
[BlackElo "2303"]
[Annotator "NA"]
[PlyCount "68"]
[EventDate "2018.07.01"]
[EventType "swiss"]
[EventCountry "ISR"]
[SourceTitle "playchess.com"]
[Source "ChessBase"]
[SourceQuality "1"]
[TimeControl "40/5400+30:1800+30"]

1. d4 {[%emt 0:00:00]} Nf6 {[%emt 0:00:00]} 2. c4 {[%emt 0:00:00]} g6 {[%emt 0:00:00]} 3. Nc3 {[%emt 0:00:00]} Bg7 {[%emt 0:00:00]} 4. e4 {[%emt 0:00:00]} d6 {[%emt 0:00:00]} 5. Nf3 {[%emt 0:00:01]} O-O {[%emt 0:00:00]} 6. h3 {[%emt 0:00:06]} Na6 {[%emt 0:00:52]} 7. Be3 {[%emt 0:00:11]} e5 {[%emt 0:03:25]} 8. d5 {[%emt 0:00:07]} Nh5 {[%emt 0:12:12]} 9. g3 {[%emt 0:00:16]} Qe8 {[%emt 0:04:13]} 10. Be2 {[%emt 0:00:29]} f5 {[%emt 0:06:08]} 11. exf5 {[%emt 0:00:09]} gxf5 {[%emt 0:01:58]} 12. Ng5 {[%emt 0:00:13]} Nf6 {[%emt 0:01:18]} 13. Qd2 {[%emt 0:00:09]} Nc5 {[%emt 0:09:53]} 14. O-O-O {[%emt 0:03:20]} h6 {[%emt 0:04:44]} 15. Nf3 {[%emt 0:01:16]} Nfe4 {[%emt 0:03:49]} 16. Nxe4 {[%emt 0:01:29]} Nxe4 {[%emt 0:00:04]} 17. Qc2 {[%emt 0:00:10]} c6 {[%emt 0:05:57]} 18. dxc6 {[%emt 0:01:12]} Qxc6 {[%emt 0:05:48]} 19. Nh4 {[%emt 0:09:23]} Be6 {[%emt 0:02:21]} 20. g4 {[%emt 0:03:39]} f4 {[%emt 0:07:15]} 21. Bf3 {[%emt 0:03:48]} Qxc4 {[%emt 0:03:12]} 22. Bxe4 {[%emt 0:01:02]} Qxc2+ {[%emt 0:01:11]} 23. Bxc2 {[%emt 0:00:20]} fxe3 {[%emt 0:00:48]} 24. fxe3 {[%emt 0:00:40]} Rac8 {[%emt 0:05:50]} 25. Ng6 {[%emt 0:01:05]} Rf7 {[%emt 0:00:48]} 26. b3 {[%emt 0:08:20]} d5 {[%emt 0:03:25]} 27. Kb1 {[%emt 0:02:05]} Rfc7 {[%emt 0:07:07]} 28. Bf5 {[%emt 0:02:10]} Kf7 {[%emt 0:00:56]} 29. Nh4 {[%emt 0:02:08]} Bf6 {[%emt 0:01:53]} 30. Bg6+ {[%emt 0:01:08]} Kg7 {[%emt 0:00:42]} 31. Bf5 {[%emt 0:00:10]} Kf7 {[%emt 0:00:02]} 32. Bg6+ {[%emt 0:00:18]} Kg7 {[%emt 0:08:05]} 33. Bf5 {[%emt 0:00:09]} Kf7 {[%emt 0:00:21]} 34. Bg6+ {[%emt 0:00:16]} Kg7 {[%emt 0:01:39]} 1/2-1/2

[Event "Gideon Japhet ACP Open 2018"]
[Site "Jerusalem"]
[Date "2018.07.03"]
[Round "4"]
[White "Golberg, Igor"]
[Black "Bernstein, Nathan"]
[Result "1-0"]
[ECO "E01"]
[WhiteElo "2132"]
[BlackElo "1921"]
[Annotator "NA"]
[PlyCount "75"]
[EventDate "2018.07.01"]
[EventType "swiss"]
[EventCountry "ISR"]
[SourceTitle "playchess.com"]
[Source "ChessBase"]
[SourceQuality "1"]
[TimeControl "40/5400+30:1800+30"]

1. d4 {[%emt 0:00:00]} e6 {[%emt 0:00:17]} 2. c4 {[%emt 0:00:01]} d5 {[%emt 0:00:10]} 3. Nf3 {[%emt 0:00:11]} Nf6 {[%emt 0:02:22]} 4. g3 {[%emt 0:00:05]} Nbd7 {[%emt 0:01:45]} 5. Bg2 {[%emt 0:00:09]} Ne4 {[%emt 0:00:18]} 6. O-O {[%emt 0:00:12]} f5 {[%emt 0:00:13]} 7. Nfd2 {[%emt 0:00:56]} Ndf6 {[%emt 0:02:56]} 8. f3 {[%emt 0:00:40]} Nxd2 {[%emt 0:00:45]} 9. Qxd2 {[%emt 0:00:57]} h5 {[%emt 0:00:26]} 10. Nc3 {[%emt 0:01:02]} c5 {[%emt 0:00:25]} 11. cxd5 {[%emt 0:01:16]} exd5 {[%emt 0:01:04]} 12. e4 {[%emt 0:00:27]} h4 {[%emt 0:04:53]} 13. e5 {[%emt 0:07:41]} Nh5 {[%emt 0:02:18]} 14. g4 {[%emt 0:00:52]} f4 {[%emt 0:04:37]} 15. Qd3 {[%emt 0:05:49]} Be6 {[%emt 0:04:37]} 16. Qb5+ {[%emt 0:02:15]} Kf7 {[%emt 0:01:55]} 17. Ne2 {[%emt 0:01:20]} g5 {[%emt 0:04:36]} 18. gxh5 {[%emt 0:00:16]} h3 {[%emt 0:00:11]} 19. Bh1 {[%emt 0:00:16]} Qb6 {[%emt 0:01:10]} 20. Qxb6 {[%emt 0:00:50]} axb6 {[%emt 0:00:13]} 21. Bd2 {[%emt 0:00:14]} Be7 {[%emt 0:00:32]} 22. Kf2 {[%emt 0:01:51]} Bf5 {[%emt 0:00:39]} 23. Rfd1 {[%emt 0:03:02]} Bc2 {[%emt 0:00:29]} 24. Rg1 {[%emt 0:02:42]} Bd3 {[%emt 0:03:14]} 25. Bxf4 {[%emt 0:00:09]} Bxe2 {[%emt 0:00:24]} 26. Bxg5 {[%emt 0:00:09]} Bxg5 {[%emt 0:02:02]} 27. Rxg5 {[%emt 0:00:10]} Bc4 {[%emt 0:00:13]} 28. a3 {[%emt 0:00:31]} cxd4 {[%emt 0:00:16]} 29. f4 {[%emt 0:00:31]} d3 {[%emt 0:01:23]} 30. Ke3 {[%emt 0:00:08]} Rag8 {[%emt 0:00:19]} 31. Rag1 {[%emt 0:00:15]} Rxg5 {[%emt 0:00:31]} 32. Rxg5 {[%emt 0:00:02]} d4+ {[%emt 0:03:45]} 33. Kd2 {[%emt 0:00:06]} Ba6 {[%emt 0:00:31]} 34. Be4 {[%emt 0:00:07]} Ke6 {[%emt 0:01:01]} 35. Rg6+ {[%emt 0:00:16]} Kf7 {[%emt 0:00:14]} 36. Bd5+ {[%emt 0:00:28]} Kf8 {[%emt 0:00:14]} 37. h6 {[%emt 0:00:19]} Ke7 {[%emt 0:00:55]} 38. f5 {[%emt 0:00:08]} 1-0

[Event "Gideon Japhet ACP Open 2018"]
[Site "Jerusalem"]
[Date "2018.07.03"]
[Round "4"]
[White "Gorodetzky, Matan"]
[Black "Caspi, Israel"]
[Result "1-0"]
[ECO "C43"]
[WhiteElo "2060"]
[BlackElo "2479"]
[Annotator "ChessBase"]
[PlyCount "85"]
[EventDate "2018.07.01"]
[EventType "swiss"]
[EventCountry "ISR"]
[SourceTitle "playchess.com"]
[Source "ChessBase"]
[SourceQuality "1"]
[TimeControl "40/5400+30:1800+30"]

1. e4 {[%emt 0:00:00]} e5 {[%emt 0:00:00]} 2. Nf3 {[%emt 0:00:00]} Nf6 {[%emt 0:00:00]} 3. d4 {[%emt 0:00:50]} Nxe4 {[%emt 0:00:00]} 4. Bd3 {[%emt 0:03:19]} d5 {[%emt 0:00:00]} 5. dxe5 {[%emt 0:01:39]} Nc5 {[%emt 0:00:06]} 6. Be2 {[%emt 0:00:05]} Be7 {[%emt 0:00:39]} 7. Be3 {[%emt 0:05:11]} O-O {[%emt 0:02:07]} 8. O-O {[%emt 0:03:54]} c6 {[%emt 0:00:03]} 9. c4 {[%emt 0:11:36]} dxc4 {[%emt 0:00:44]} 10. Bxc4 {[%emt 0:00:41]} Nbd7 {[%emt 0:00:05]} 11. Qc2 {[%emt 0:08:46]} Qc7 {[%emt 0:05:05]} 12. Bf4 {[%emt 0:02:45]} Nb6 {[%emt 0:04:10]} 13. Be2 {[%emt 0:07:26]} Nd5 {[%emt 0:17:57]} 14. Bg3 {[%emt 0:00:57]} Qa5 {[%emt 0:00:23]} 15. a3 {[%emt 0:05:25]} Qa4 {[%emt 0:01:14]} 16. Bd1 {[%emt 0:02:18]} Qxc2 {[%emt 0:05:43]} 17. Bxc2 {[%emt 0:00:03]} f5 {[%emt 0:02:35]} 18. exf6 {[%emt 0:00:47]} Rxf6 {[%emt 0:02:56]} 19. Be5 {[%emt 0:06:31]} Rf8 {[%emt 0:03:19]} 20. Nc3 {[%emt 0:07:17]} Nf4 {[%emt 0:08:23]} 21. Rad1 {[%emt 0:02:50]} Bg4 {[%emt 0:02:58]} 22. b4 {[%emt 0:01:10]} Nd7 {[%emt 0:02:23]} 23. Bb3+ {[%emt 0:09:06]} Kh8 {[%emt 0:02:22]} 24. Bxf4 {[%emt 0:02:12]} Rxf4 {[%emt 0:00:06]} 25. h3 {[%emt 0:00:05]} Bxh3 {[%emt 0:08:18]} 26. Rfe1 {[%emt 0:00:49]} Bf6 {[%emt 0:03:24]} 27. Ne2 {[%emt 0:01:28]} Rxf3 {[%emt 0:01:43]} 28. gxf3 {[%emt 0:00:07]} Ne5 {[%emt 0:02:13]} 29. Nd4 {[%emt 0:02:22]} h5 {[%emt 0:00:35]} 30. Kh2 {[%emt 0:01:22]} Bd7 {[%emt 0:00:32]} 31. f4 {[%emt 0:01:16]} Ng4+ {[%emt 0:03:26]} 32. Kg2 {[%emt 0:00:19]} a5 {[%emt 0:00:31]} 33. Ne6 {[%emt 0:02:26]} Bxe6 {[%emt 0:01:40]} 34. Rxe6 {[%emt 0:01:19]} axb4 {[%emt 0:06:22]} 35. axb4 {[%emt 0:00:01]} Bc3 {[%emt 0:00:10]} 36. Rd7 {[%emt 0:02:10]} Bxb4 {[%emt 0:00:40]} 37. Rxb7 {[%emt 0:00:03]} Bc5 {[%emt 0:04:08]} 38. Rxc6 {[%emt 0:02:22]} Bxf2 {[%emt 0:00:44]} 39. Bc2 {[%emt 0:01:06]} Bd4 {[%emt 0:04:10]} 40. Bg6 {[%emt 0:02:27]} Nf6 {[%emt 0:00:14]} 41. Rbc7 {[%emt 0:30:56]} Rf8 {[%emt 0:30:53]} 42. Rc8 {[%emt 0:03:13]} Nd7 {[%emt 0:00:40]} 43. Bf5 {[%emt 0:00:00]} 1-0

[Event "Gideon Japhet ACP Open 2018"]
[Site "Jerusalem"]
[Date "2018.07.03"]
[Round "4"]
[White "Rozen, Eytan"]
[Black "Kantsler, Boris"]
[Result "0-1"]
[ECO "A41"]
[WhiteElo "2044"]
[BlackElo "2422"]
[Annotator "NA"]
[PlyCount "66"]
[EventDate "2018.07.01"]
[EventType "swiss"]
[EventCountry "ISR"]
[SourceTitle "playchess.com"]
[Source "ChessBase"]
[SourceQuality "1"]
[TimeControl "40/5400+30:1800+30"]

1. d4 {[%emt 0:00:00]} d6 {[%emt 0:00:00]} 2. e4 {[%emt 0:00:00]} Nf6 {[%emt 0:00:00]} 3. f3 {[%emt 0:00:06]} e5 {[%emt 0:04:14]} 4. d5 {[%emt 0:01:24]} Be7 {[%emt 0:00:07]} 5. Bd3 {[%emt 0:11:17]} Nh5 {[%emt 0:01:15]} 6. Ne2 {[%emt 0:02:35]} Bg5 {[%emt 0:00:30]} 7. O-O {[%emt 0:04:05]} O-O {[%emt 0:04:06]} 8. Bxg5 {[%emt 0:09:31]} Qxg5 {[%emt 0:00:20]} 9. Qd2 {[%emt 0:01:01]} Qe7 {[%emt 0:13:32]} 10. c4 {[%emt 0:06:46]} Nd7 {[%emt 0:04:18]} 11. Nbc3 {[%emt 0:03:18]} a5 {[%emt 0:04:14]} 12. Na4 {[%emt 0:07:34]} b6 {[%emt 0:01:26]} 13. a3 {[%emt 0:01:05]} Nc5 {[%emt 0:00:19]} 14. Nxc5 {[%emt 0:02:04]} bxc5 {[%emt 0:00:04]} 15. b4 {[%emt 0:28:31]} axb4 {[%emt 0:00:47]} 16. axb4 {[%emt 0:00:01]} Rxa1 {[%emt 0:00:07]} 17. Rxa1 {[%emt 0:00:16]} cxb4 {[%emt 0:00:01]} 18. Rb1 {[%emt 0:00:29]} Nf6 {[%emt 0:06:17]} 19. Rxb4 {[%emt 0:03:47]} Nd7 {[%emt 0:00:12]} 20. Bc2 {[%emt 0:02:20]} Nb6 {[%emt 0:18:44]} 21. Nc3 {[%emt 0:01:14]} Bd7 {[%emt 0:08:41]} 22. Ba4 {[%emt 0:06:08]} Ra8 {[%emt 0:03:33]} 23. Bxd7 {[%emt 0:02:19]} Qxd7 {[%emt 0:01:00]} 24. Qb2 {[%emt 0:02:24]} Qd8 {[%emt 0:01:13]} 25. Nb5 {[%emt 0:01:41]} Na4 {[%emt 0:02:19]} 26. Qa2 {[%emt 0:02:30]} Nc5 {[%emt 0:00:57]} 27. Qb1 {[%emt 0:00:33]} g6 {[%emt 0:00:40]} 28. Nc3 {[%emt 0:00:29]} Qg5 {[%emt 0:00:48]} 29. Rb8+ {[%emt 0:00:31]} Rxb8 {[%emt 0:00:01]} 30. Qxb8+ {[%emt 0:00:14]} Kg7 {[%emt 0:00:01]} 31. Qb2 {[%emt 0:00:46]} Qe3+ {[%emt 0:00:05]} 32. Kf1 {[%emt 0:00:08]} Qd3+ {[%emt 0:00:51]} 33. Ne2 {[%emt 0:00:52]} Qd1+ 0-1

[Event "Gideon Japhet ACP Open 2018"]
[Site "Jerusalem"]
[Date "2018.07.03"]
[Round "4"]
[White "Levin, Natan"]
[Black "Berenboym, Igor"]
[Result "0-1"]
[ECO "A00"]
[WhiteElo "1849"]
[BlackElo "2116"]
[Annotator "NA"]
[PlyCount "56"]
[EventDate "2018.07.01"]
[EventType "swiss"]
[EventCountry "ISR"]
[SourceTitle "playchess.com"]
[Source "ChessBase"]
[SourceQuality "1"]
[TimeControl "40/5400+30:1800+30"]

1. c3 {[%emt 0:17:44]} Nf6 {[%emt 0:02:46]} 2. Qa4 {[%emt 0:02:56]} Nc6 {[%emt 0:05:47]} 3. b4 {[%emt 0:02:02]} e5 {[%emt 0:01:10]} 4. d3 {[%emt 0:01:58]} d5 {[%emt 0:00:58]} 5. Bg5 {[%emt 0:08:01]} Bd6 {[%emt 0:21:17]} 6. g4 {[%emt 0:10:28]} Bd7 {[%emt 0:05:49]} 7. Qb3 {[%emt 0:13:14]} Bxg4 {[%emt 0:07:00]} 8. Bg2 {[%emt 0:07:02]} Be6 {[%emt 0:02:12]} 9. Nd2 {[%emt 0:02:00]} h6 {[%emt 0:02:12]} 10. Bxf6 {[%emt 0:01:15]} Qxf6 {[%emt 0:04:20]} 11. Bxd5 {[%emt 0:00:18]} Bxd5 {[%emt 0:01:59]} 12. Qxd5 {[%emt 0:01:02]} O-O-O {[%emt 0:00:09]} 13. Qb5 {[%emt 0:07:49]} Rhe8 {[%emt 0:06:00]} 14. Ne4 {[%emt 0:01:20]} Qe6 {[%emt 0:06:11]} 15. Qa4 {[%emt 0:04:06]} Kb8 {[%emt 0:04:29]} 16. b5 {[%emt 0:01:38]} Ne7 {[%emt 0:00:07]} 17. c4 {[%emt 0:00:53]} f5 {[%emt 0:00:27]} 18. c5 {[%emt 0:03:01]} fxe4 {[%emt 0:00:07]} 19. cxd6 {[%emt 0:00:15]} Rxd6 {[%emt 0:01:56]} 20. b6 {[%emt 0:00:34]} Nc6 {[%emt 0:02:15]} 21. bxa7+ {[%emt 0:03:17]} Nxa7 {[%emt 0:00:05]} 22. Qxe4 {[%emt 0:02:27]} Rd4 {[%emt 0:01:43]} 23. Qe3 {[%emt 0:00:35]} Qc6 {[%emt 0:00:30]} 24. Rc1 {[%emt 0:06:28]} Qxh1 {[%emt 0:00:26]} 25. Kd2 {[%emt 0:00:29]} Qd5 {[%emt 0:01:03]} 26. Rc2 {[%emt 0:00:35]} Ra4 {[%emt 0:00:25]} 27. Qg3 {[%emt 0:01:28]} Rxa2 {[%emt 0:00:53]} 28. Rxa2 {[%emt 0:00:00]} Qxa2+ 0-1

[Event "Gideon Japhet ACP Open 2018"]
[Site "Jerusalem"]
[Date "2018.07.04"]
[Round "5"]
[White "Muzychuk, Mariya"]
[Black "Gruenfeld, Yehuda"]
[Result "1/2-1/2"]
[ECO "B90"]
[WhiteElo "2521"]
[BlackElo "2419"]
[Annotator "ChessBase"]
[PlyCount "71"]
[EventDate "2018.07.01"]
[EventType "swiss"]
[EventCountry "ISR"]
[SourceTitle "playchess.com"]
[Source "ChessBase"]
[SourceQuality "1"]
[TimeControl "40/5400+30:1800+30"]

1. e4 {[%emt 0:00:00]} c5 {[%emt 0:00:00]} 2. Nf3 {[%emt 0:00:00]} d6 {[%emt 0:00:00]} 3. d4 {[%emt 0:00:08]} cxd4 {[%emt 0:00:00]} 4. Nxd4 {[%emt 0:00:02]} Nf6 {[%emt 0:00:00]} 5. Nc3 {[%emt 0:00:05]} a6 {[%emt 0:00:05]} 6. f3 {[%emt 0:00:07]} e5 {[%emt 0:00:58]} 7. Nb3 {[%emt 0:00:06]} Be7 {[%emt 0:00:06]} 8. Be3 {[%emt 0:00:40]} O-O {[%emt 0:00:38]} 9. Qd2 {[%emt 0:00:40]} Be6 {[%emt 0:00:06]} 10. O-O-O {[%emt 0:00:45]} Nbd7 {[%emt 0:00:07]} 11. g4 {[%emt 0:00:52]} b5 {[%emt 0:00:04]} 12. g5 {[%emt 0:00:32]} b4 {[%emt 0:01:02]} 13. Ne2 {[%emt 0:00:19]} Ne8 {[%emt 0:01:16]} 14. f4 {[%emt 0:00:31]} a5 {[%emt 0:01:14]} 15. f5 {[%emt 0:00:05]} a4 {[%emt 0:00:13]} 16. fxe6 {[%emt 0:00:36]} axb3 {[%emt 0:00:06]} 17. cxb3 {[%emt 0:00:11]} fxe6 {[%emt 0:02:42]} 18. Bh3 {[%emt 0:00:36]} Nc7 {[%emt 0:11:23]} 19. Kb1 {[%emt 0:05:33]} Kh8 {[%emt 0:05:22]} 20. Bg2 {[%emt 0:08:11]} Qb8 {[%emt 0:06:06]} 21. h4 {[%emt 0:03:02]} Qb7 {[%emt 0:04:53]} 22. Rdf1 {[%emt 0:19:33]} Na6 {[%emt 0:08:46]} 23. Rxf8+ {[%emt 0:14:36]} Rxf8 {[%emt 0:02:33]} 24. h5 {[%emt 0:00:55]} Nac5 {[%emt 0:00:21]} 25. Qc2 {[%emt 0:00:38]} Qa6 {[%emt 0:04:46]} 26. Nc1 {[%emt 0:01:06]} Kg8 {[%emt 0:05:33]} 27. Rd1 {[%emt 0:10:51]} g6 {[%emt 0:06:29]} 28. Rh1 {[%emt 0:02:26]} Rf7 {[%emt 0:04:55]} 29. Qd1 {[%emt 0:02:42]} Nf8 {[%emt 0:02:57]} 30. Qg4 {[%emt 0:03:49]} Qc6 {[%emt 0:04:56]} 31. Bf3 {[%emt 0:01:38]} Bd8 {[%emt 0:08:16]} 32. Qg2 {[%emt 0:09:33]} Bb6 {[%emt 0:05:29]} 33. Re1 {[%emt 0:00:12]} Qb5 {[%emt 0:06:00]} 34. Be2 {[%emt 0:05:59]} Qc6 {[%emt 0:00:10]} 35. Bf3 {[%emt 0:01:08]} Qb5 {[%emt 0:00:12]} 36. Be2 {[%emt 0:00:40]} 1/2-1/2

[Event "Gideon Japhet ACP Open 2018"]
[Site "Jerusalem"]
[Date "2018.07.04"]
[Round "5"]
[White "Kobo, Ori"]
[Black "Erenberg, Ariel"]
[Result "1-0"]
[ECO "A46"]
[WhiteElo "2508"]
[BlackElo "2393"]
[Annotator "ChessBase"]
[PlyCount "91"]
[EventDate "2018.07.01"]
[EventType "swiss"]
[EventCountry "ISR"]
[SourceTitle "playchess.com"]
[Source "ChessBase"]
[SourceQuality "1"]
[TimeControl "40/5400+30:1800+30"]

1. Nf3 {[%emt 0:00:03]} Nf6 {[%emt 0:00:00]} 2. d4 {[%emt 0:00:11]} e6 {[%emt 0:01:31]} 3. e3 {[%emt 0:00:24]} b6 {[%emt 0:07:49]} 4. Bd3 {[%emt 0:00:21]} Bb7 {[%emt 0:04:21]} 5. O-O {[%emt 0:00:44]} Be7 {[%emt 0:03:37]} 6. c4 {[%emt 0:01:35]} O-O {[%emt 0:02:52]} 7. Nc3 {[%emt 0:01:06]} d5 {[%emt 0:00:07]} 8. cxd5 {[%emt 0:00:22]} Nxd5 {[%emt 0:07:58]} 9. e4 {[%emt 0:03:46]} Nb4 {[%emt 0:13:35]} 10. Bc4 {[%emt 0:04:08]} c5 {[%emt 0:02:15]} 11. dxc5 {[%emt 0:09:38]} Bxc5 {[%emt 0:02:42]} 12. Qe2 {[%emt 0:05:13]} Nd7 {[%emt 0:03:20]} 13. Rd1 {[%emt 0:00:58]} Qc8 {[%emt 0:03:44]} 14. a3 {[%emt 0:06:52]} Nc6 {[%emt 0:00:35]} 15. b4 {[%emt 0:00:31]} Be7 {[%emt 0:01:38]} 16. Bf4 {[%emt 0:00:56]} Bf6 {[%emt 0:04:11]} 17. Rac1 {[%emt 0:01:04]} Nde5 {[%emt 0:03:27]} 18. Nb5 {[%emt 0:13:22]} Rd8 {[%emt 0:11:49]} 19. Nd6 {[%emt 0:14:42]} Qb8 {[%emt 0:00:21]} 20. Nxf7 {[%emt 0:05:16]} Rxd1+ {[%emt 0:08:29]} 21. Rxd1 {[%emt 0:06:32]} Kxf7 {[%emt 0:00:15]} 22. Ng5+ {[%emt 0:12:16]} Bxg5 {[%emt 0:06:14]} 23. Qh5+ {[%emt 0:00:50]} Kg8 {[%emt 0:00:10]} 24. Bxe6+ {[%emt 0:00:19]} Kh8 {[%emt 0:00:23]} 25. Qxg5 {[%emt 0:00:24]} h6 {[%emt 0:03:05]} 26. Qf5 {[%emt 0:02:57]} Qf8 {[%emt 0:03:52]} 27. b5 {[%emt 0:00:21]} Rd8 {[%emt 0:01:46]} 28. Qxf8+ Rxf8 29. bxc6 {[%emt 0:01:52]} Nxc6 {[%emt 0:00:06]} 30. Bg3 {[%emt 0:00:56]} Re8 {[%emt 0:01:12]} 31. Bf5 {[%emt 0:02:06]} Na5 {[%emt 0:01:04]} 32. e5 {[%emt 0:01:07]} Bc8 {[%emt 0:01:19]} 33. Bg6 {[%emt 0:00:09]} Rf8 {[%emt 0:00:10]} 34. f4 {[%emt 0:03:12]} Nc4 {[%emt 0:00:28]} 35. Rd3 {[%emt 0:00:53]} Kg8 {[%emt 0:02:14]} 36. Rc3 {[%emt 0:01:30]} b5 {[%emt 0:00:20]} 37. a4 {[%emt 0:01:15]} a6 {[%emt 0:00:21]} 38. axb5 {[%emt 0:00:04]} axb5 39. Rb3 {[%emt 0:00:42]} Bd7 {[%emt 0:00:22]} 40. h4 {[%emt 0:00:29]} Kh8 {[%emt 0:01:41]} 41. f5 {[%emt 0:06:09]} Bxf5 {[%emt 0:10:19]} 42. Rf3 {[%emt 0:00:22]} Ne3 {[%emt 0:00:20]} 43. e6 {[%emt 0:02:33]} Rf6 {[%emt 0:01:14]} 44. Bxf5 {[%emt 0:00:04]} Nxf5 {[%emt 0:00:07]} 45. Rxf5 {[%emt 0:00:13]} Rxf5 {[%emt 0:00:18]} 46. e7 {[%emt 0:00:04]} 1-0

[Event "Gideon Japhet ACP Open 2018"]
[Site "Jerusalem"]
[Date "2018.07.04"]
[Round "5"]
[White "Kantsler, Boris"]
[Black "Bagrationi, Alexander"]
[Result "1/2-1/2"]
[ECO "E63"]
[WhiteElo "2422"]
[BlackElo "2539"]
[Annotator "ChessBase"]
[PlyCount "59"]
[EventDate "2018.07.01"]
[EventType "swiss"]
[EventCountry "ISR"]
[SourceTitle "playchess.com"]
[Source "ChessBase"]
[SourceQuality "1"]
[TimeControl "40/5400+30:1800+30"]

1. d4 Nf6 {[%emt 0:10:15]} 2. Nf3 {[%emt 0:00:14]} g6 {[%emt 0:01:12]} 3. c4 {[%emt 0:00:25]} Bg7 {[%emt 0:00:13]} 4. g3 {[%emt 0:00:06]} O-O {[%emt 0:00:05]} 5. Bg2 {[%emt 0:00:02]} d6 {[%emt 0:00:04]} 6. O-O {[%emt 0:00:04]} Nc6 {[%emt 0:00:05]} 7. Nc3 {[%emt 0:00:04]} a6 {[%emt 0:00:10]} 8. Bf4 {[%emt 0:00:12]} Rb8 {[%emt 0:01:41]} 9. Rc1 {[%emt 0:00:33]} b5 {[%emt 0:06:29]} 10. Nd5 {[%emt 0:01:07]} bxc4 {[%emt 0:01:11]} 11. Nxf6+ {[%emt 0:00:06]} exf6 {[%emt 0:00:52]} 12. Rxc4 {[%emt 0:00:23]} Ne7 {[%emt 0:00:23]} 13. b3 {[%emt 0:05:23]} Nd5 {[%emt 0:06:16]} 14. Bd2 {[%emt 0:00:48]} f5 {[%emt 0:00:42]} 15. e3 {[%emt 0:06:42]} Nb6 {[%emt 0:04:38]} 16. Rc1 {[%emt 0:10:32]} Bb7 {[%emt 0:07:53]} 17. Ne1 {[%emt 0:07:32]} Nd5 {[%emt 0:02:51]} 18. Nd3 {[%emt 0:04:12]} Qe7 {[%emt 0:02:12]} 19. Qc2 {[%emt 0:05:33]} Rfc8 {[%emt 0:06:35]} 20. Rfd1 {[%emt 0:06:19]} Qd7 {[%emt 0:07:03]} 21. Be1 {[%emt 0:01:29]} Ne7 {[%emt 0:06:10]} 22. Bxb7 {[%emt 0:01:00]} Rxb7 {[%emt 0:07:19]} 23. Nb4 {[%emt 0:03:06]} c6 {[%emt 0:02:06]} 24. Nxa6 {[%emt 0:20:26]} Nd5 {[%emt 0:00:25]} 25. a3 f4 {[%emt 0:00:34]} 26. exf4 {[%emt 0:05:10]} Nxf4 {[%emt 0:01:25]} 27. gxf4 {[%emt 0:03:50]} Qg4+ {[%emt 0:04:16]} 28. Kh1 {[%emt 0:00:07]} Qf3+ {[%emt 0:00:08]} 29. Kg1 {[%emt 0:00:03]} Qg4+ {[%emt 0:00:35]} 30. Kh1 {[%emt 0:00:01]} 1/2-1/2